Cogmind - Beta 13 @@@ ROGUE MODE // 2024.07.05 @ 11:01:35 Player: AntiGoose Result: Destroyed by BZ-GVE(R) with Subdweller Laser Performance ------------- Evolutions (0) 0 Regions Visited (2) 400 Robots Destroyed (22) 110 Value Destroyed (543) 543 Prototype IDs (10) 200 Alien Tech Used (0) 0 Bonus (0) 0 TOTAL SCORE: 1253 Bonus ------- None Cogmind --------- Core Integrity 0/250 Matter 175/300 Energy 150/150 System Corruption 0% Temperature Cool (6) Movement Rolling (150) Ox4 Location -10/Subcaves Parts ------- > --- POWER (1+1) ------ Light Ion Engine (+) Light Ion Engine > --- PROPULSION (2+1) - Subdweller Monowheel (+) > --- UTILITY (2+1) ---- Huge Storage Unit Structural Scanner (+) Rainbow Chip > --- WEAPON (2+1) ----- Subdweller Machine Gun (+) Battle Cannon Makeshift Sword > --- INVENTORY (25) --- Backup Propulsion I Disposable Heat Sink Small Battery (100) Visual Processing Unit Visual Processing Unit Subdweller Optics Subdweller Optics Seismic Detector Core Shielding Flamer Peak State ------------ > --- POWER ------------ Light Ion Engine Light Ion Engine > --- PROPULSION ------- Light Treads Subdweller Monowheel Subdweller Monowheel > --- UTILITY ---------- Huge Storage Unit Structural Scanner Rainbow Chip > --- WEAPON ----------- Subdweller Machine Gun Battle Cannon Makeshift Sword > --- INVENTORY -------- Backup Propulsion I Small Battery Visual Processing Unit Visual Processing Unit Subdweller Optics Seismic Detector Core Shielding Flamer [Rating: 31] Favorites ----------- Power Light Ion Engine Engine Light Ion Engine Propulsion Light Treads Treads Light Treads Wheel Subdweller Monowheel Utility Huge Storage Unit Device Seismic Detector Storage Huge Storage Unit Processor Rainbow Chip Weapon Assault Rifle Ballistic Gun Assault Rifle Ballistic Cannon Light Cannon Slashing Weapon Makeshift Sword Build | -11 -10 -10 ------- Run | Yrd Mat Sub Slots Evolved . | . . . Power . | . . . Propulsion . | . . . Utility . | . . . Weapon . | . . . Parts Attached 31 | 6 10 15 Power 3 | 1 1 1 Engine 3 | 1 1 1 Core . | . . . Reactor . | . . . Propulsion 7 | 2 3 2 Treads 5 | 2 3 . Leg . | . . . Wheel 2 | . . 2 Hover . | . . . Flight . | . . . Utility 6 | 1 3 2 Device 3 | . 2 1 Storage 2 | 1 1 . Processor 1 | . . 1 Hackware . | . . . Protection . | . . . Artifact . | . . . Weapon 15 | 2 3 10 Energy Gun . | . . . Energy Cannon . | . . . Ballistic Gun 8 | 2 1 5 Ballistic Cannon 4 | . 2 2 Launcher . | . . . Special Weapon . | . . . Impact Weapon . | . . . Slashing Weapon 3 | . . 3 Piercing Weapon . | . . . Special Melee Weapon . | . . . Unidentified Prototypes . | . . . Parts Lost 3 | . 1 2 Power . | . . . Propulsion 1 | . . 1 Utility 1 | . 1 . Weapon 1 | . . 1 Highest Loss Streak 2 | . 1 2 To Critical Strikes . | . . . Average Slot Usage (%) 92 | . 98 86 Engine 14 | . 14 15 Treads 19 | . 27 11 Wheel 1 | . . 3 Device 12 | . 12 11 Storage 13 | . 14 11 Processor 1 | . . 3 Ballistic Gun 12 | . 14 10 Ballistic Cannon 12 | . 13 11 Slashing Weapon 2 | . . 5 Naked Turns . | . . . Heaviest Build 96 | 12 89 96 Greatest Support 40 | 40 40 40 Greatest Overweight (x) 4 | . 2 4 Average Overweight (x) 2 | . 1 3 Largest Inventory Capacity 25 | 8 25 25 Average Capacity 23 | 7 22 25 Most Carried 10 | 2 9 10 Average Carried 6 | . 4 8 Final Capacity 25 | 8 25 25 Final Carried 10 | 2 8 10 Class Distribution -------------------- 92% | Mutant 7% | Scavenger-Mutant Dominant Class ---------------- Mutant | -10/Materials Mutant | -10/Subcaves Resources | -11 -10 -10 ----------- Run | Yrd Mat Sub Matter Collected 954 | 223 451 280 Remotely . | . . . Salvage Created 662 | . 422 240 Parts 51 | . 32 19 Haulers Intercepted . | . . . Recyclers Shooed 3 | . 3 . Parts Field Recycled . | . . . Retrieved Matter . | . . . Parts Self-Destructed . | . . . Prevented . | . . . Kills | -11 -10 -10 ------- Run | Yrd Mat Sub Combat Hostiles Destroyed 17 | . 11 6 Guns 7 | . 4 3 Cannons 10 | . 7 3 Classes Destroyed 5 | . 4 1 Recycler 2 | . 2 . Watcher 3 | . 3 . Swarmer 6 | . 6 . Grunt 5 | . 5 . Subdweller 6 | . . 6 Best Kill Streak 3 | . 3 2 Combat Bots Only 3 | . 3 2 Max Kills in Single Turn 1 | . 1 1 Gunslinging . | . . . Exploded . | . . . Melee . | . . . Uniques/NPCs Destroyed . | . . . Combat | -11 -10 -10 -------- Run | Yrd Mat Sub Hostile Shots Fired 127 | . 93 34 Missed 39 | . 28 11 Damage Taken 1280 | . 603 677 Core 269 | . 142 127 Absorbed by Shields . | . . . Regen/Repaired (Parts) 58 | . 58 . Core Remaining (%) 100 | 100 . . Volleys Fired 84 | . 60 24 Largest 2 | . 2 2 Hottest 69 | . 55 69 Shots Fired 168 | . 120 48 Gun 86 | . 62 24 Cannon 82 | . 58 24 Launcher . | . . . Special . | . . . Kinetic 168 | . 120 48 Thermal . | . . . Explosive . | . . . Electromagnetic . | . . . Robot Hit Streak 11 | . 7 11 Robot Miss Streak 6 | . 6 2 Penetration Max . | . . . Secondary Targets . | . . . Shots Hit Robots 89 | . 55 34 Core Hits 34 | . 22 12 Critical Kills . | . . . Critical Parts Destroyed . | . . . Critical Strikes 2 | . 2 . Blast 2 | . 2 . Melee Attacks 17 | . . 17 Impact . | . . . Slashing 17 | . . 17 Piercing . | . . . Sneak Attacks . | . . . Combat Hostiles . | . . . Follow-up Attacks . | . . . Damage Inflicted 1392 | . 862 530 Guns 611 | . 387 224 Cannons 778 | . 472 306 Explosions . | . . . Melee . | . . . Ramming 3 | . 3 . Kinetic 1389 | . 859 530 Thermal . | . . . Explosive . | . . . Electromagnetic . | . . . Impact . | . . . Slashing . | . . . Piercing . | . . . Highest Corruption . | . . . Average Corruption . | . . . Corruption Purged . | . . . Corruption Blocked . | . . . Overload Shots . | . . . Overflow Damage 1 | . 1 . Projectiles 1 | . 1 . Explosions . | . . . Melee . | . . . Knockbacks 11 | . 7 4 Impact . | . . . Kinetic 11 | . 7 4 Secondary . | . . . Self-Inflicted Damage . | . . . Shots . | . . . Rammed 1 | . 1 . Targets Rammed 1 | . 1 . Kicked . | . . . Crushed . | . . . Highest Temperature 16 | . 16 . Average Temperature 5 | . 5 . Received Heat Transfer 204 | . 144 60 Siege Activations . | . . . Robots Corrupted . | . . . Combat Hostiles . | . . . Parts Fried . | . . . Impact Corruptions . | . . . Robots Melted . | . . . Combat Hostiles . | . . . Parts Melted 1 | . . 1 Heat Transferred . | . . . Parts Sabotaged . | . . . Parts Stolen . | . . . Parts Stripped . | . . . Power Chain Reactions . | . . . Alert | -11 -10 -10 ------- Run | Yrd Mat Sub Peak Influence 161 | . 161 . Initial . | . . . Average 54 | . 55 . Maximum Alert Level . | . . . Low Security (%) 100 | 100 100 . Level 1 . | . . . Level 2 . | . . . Level 3 . | . . . Level 4 . | . . . Level 5 . | . . . High Security . | . . . Max Security . | . . . Squads Dispatched 2 | . 2 . Investigation . | . . . Extermination . | . . . Reinforcement 2 | . 2 . Assault . | . . . Garrison . | . . . Intercept . | . . . Searches Triggered . | . . . Construction Impeded . | . . . Haulers Reinforced . | . . . Active Scanning Responses . | . . . Cargo Convoy Interrupts . | . . . Stealth | -11 -10 -10 --------- Run | Yrd Mat Sub Distress Signals 2 | . 2 . Communications Jammed . | . . . Distress Signals . | . . . Times Spotted 30 | . 23 7 Peak Tracking Total 6 | . 6 3 Tactical Retreats 3 | . 3 . Traps | -11 -10 -10 ------- Run | Yrd Mat Sub Traps Triggered . | . . . Indirectly . | . . . Trap Hack Attempts . | . . . Triggered . | . . . Disarmed . | . . . Reprogrammed . | . . . Reused . | . . . Traps Extracted . | . . . Installed . | . . . Triggered . | . . . Machines | -11 -10 -10 ---------- Run | Yrd Mat Sub Machines Disabled 1 | . . 1 Max in Single Turn 1 | . . 1 Machines Repaired . | . . . Machines Dismantled . | . . . Machines Sabotaged . | . . . Overloaded Fab Kills . | . . . Hacking | -11 -10 -10 --------- Run | Yrd Mat Sub Machines Accessed 7 | . 6 1 Terminals 4 | . 4 . Fabricators . | . . . Repair Stations 1 | . 1 . Recycling Units 1 | . 1 . Scanalyzers . | . . . Garrison Access . | . . . Total Hacks 26 | . 17 9 Successful 20 | . 11 9 Failed 6 | . 6 . Catastrophic 3 | . 3 . Database Lockouts . | . . . Manual 3 | . 3 . Terminals 13 | . 13 . Fabricators . | . . . Repair Stations 3 | . 3 . Recycling Units 1 | . 1 . Scanalyzers . | . . . Garrison Access . | . . . Terminal Hacks 16 | . 7 9 Record 11 | . 3 8 Locate Traps 1 | . 1 . Recall Investigation 1 | . 1 . Hauler Manifests 1 | . 1 . Registered Prototypes 1 | . 1 . Derelict Proto ID Bank 1 | . . 1 Fabricator Hacks . | . . . Repair Station Hacks 3 | . 3 . Scan Component 1 | . 1 . Repair 1 | . 1 . Refit 1 | . 1 . Recycling Unit Hacks 1 | . 1 . Report Inventory 1 | . 1 . Scanalyzer . | . . . Garrison Access Hacks . | . . . Unauthorized Hacks . | . . . Terminals . | . . . Fabricators . | . . . Repair Stations . | . . . Recycling Units . | . . . Scanalyzers . | . . . Garrison Access . | . . . Data Cores Recovered . | . . . Used . | . . . Hacking Detections 4 | . 4 . Full Trace Events 3 | . 3 . Feedback Events . | . . . Feedback Blocked . | . . . Robot Schematics Acquired . | . . . Robots Built . | . . . Authchips . | . . . Time . | . . . Total Robot Build Rating . | . . . Part Schematics Acquired . | . . . Parts Built . | . . . Authchips . | . . . Time . | . . . Total Part Build Rating . | . . . Parts Repaired 1 | . 1 . Time 26 | . 26 . Parts Recycled . | . . . Recycled Matter . | . . . Retrieved Matter . | . . . Retrieved Components . | . . . Parts Scanalyzed . | . . . Part Schematics Acquired . | . . . Parts Damaged . | . . . Bothacking | -11 -10 -10 ------------ Run | Yrd Mat Sub Used RIF Installer . | . . . Robots Hacked . | . . . Non-combat . | . . . Combat . | . . . Robot Hacks Applied . | . . . Relay Couplers Released . | . . . Fabnet Peak Effective % . | . . . Robots Rewired . | . . . Allies Hacked . | . . . Hacks Repelled . | . . . Allies | -11 -10 -10 -------- Run | Yrd Mat Sub Total Allies . | . . . Largest Group . | . . . Highest-Rated Group . | . . . Highest-Rated Ally . | . . . Total Orders . | . . . Ally Attacks . | . . . Total Damage . | . . . Kills . | . . . Allies Corrupted . | . . . Allies Melted . | . . . Intel | -11 -10 -10 ------- Run | Yrd Mat Sub Robot Analysis Total . | . . . Derelict Logs Recovered 2 | . . 2 Drone Launches . | . . . Drone Recoveries . | . . . Exploration | -11 -10 -10 ------------- Run | Yrd Mat Sub Turns Passed 4178 | 61 2122 1995 Spaces Moved 1366 | 35 656 675 Core 4 | 4 . . Treads 990 | 31 656 303 Legs . | . . . Wheels 372 | . . 372 Hover . | . . . Flight . | . . . Fastest Speed 50 | 50 160 130 Average Speed 276 | 147 285 274 Slowest Speed 480 | 160 320 480 Overloaded Moves . | . . . Propulsion Burnouts . | . . . Robots Hopped . | . . . Cave-ins Triggered . | . . . Exploration Rate (%) 47 | 3 97 42 Regions Visited 2 Branch Regions 1 Pre-discovered Areas 1 | . . 1 Known Exits Taken . | . . . Unknown Exits Taken 2 | 1 1 . Scrap Searched 1 | . . 1 Spaces Dug 1 | . . 1 Terrain Destroyed 1 | . . 1 Melee 1 | . . 1 Projectile . | . . . AOE . | . . . Terrain Rammed . | . . . Walls Destroyed . | . . . Machines Disabled . | . . . Actions | -11 -10 -10 --------- Run | Yrd Mat Sub Total 1574 | 42 784 748 Wait 38 | . 37 1 Move 1364 | 34 655 675 Hop . | . . . Pick Up 27 | 2 14 11 Fast Attach 6 | 6 . . Attach 9 | . 3 6 Detach 1 | . 1 . Swap 16 | . 7 9 Drop 11 | . 6 5 Fire 84 | . 60 24 Melee 17 | . . 17 Ram . | . . . Kick . | . . . Crush 1 | . 1 . Escape Stasis . | . . . Rewire . | . . . Trap . | . . . Miscellaneous . | . . . Route ------- -11/Scrapyard -10/Materials (discovered 5 exits: [*Mat x3] / [*Min] / *Sub) -10/Subcaves (discovered 1 exit: Rec) History --------- Turn | Location | Event 13 | -11/Scrapyard | Discovered new exit (range 15) 62 | -11/Scrapyard | Entered Materials 257 | -10/Materials | Discovered new exit (range 16) 312 | -10/Materials | Build established: Mutant 849 | -10/Materials | Discovered new exit (range 15) 1206 | -10/Materials | Discovered new exit (range 8) 1905 | -10/Materials | Repaired Lgt. Treads 2000 | -10/Materials | Discovered new exit (range 8) 2003 | -10/Materials | Core integrity fell below 50% 2165 | -10/Materials | Discovered new exit (range 7) 2184 | -10/Materials | Entered Subcaves 2229 | -10/Subcaves | Identified exit to Recycling 2284 | -10/Subcaves | Shifting Twisted Machinery released Sub. Power Source 2291 | -10/Subcaves | Shifting Twisted Machinery released Mak. Sword 2418 | -10/Subcaves | Core integrity fell below 20% 2419 | -10/Subcaves | Ambushed by Subdweller buried in earth 2592 | -10/Subcaves | Learned Materials terminal intel 2742 | -10/Subcaves | Shifting Twisted Machinery released Sub. Optics 2746 | -10/Subcaves | Shifting Twisted Machinery released Battle Cannon 2928 | -10/Subcaves | Learned location of Zion (-7) 2928 | -10/Subcaves | Met a Zionite searching for "candidates" 3300 | -10/Subcaves | Visited 4L-MR0's lab 3359 | -10/Subcaves | Found Rainbow Chip 3361 | -10/Subcaves | Attached Rainbow Chip, gained temporary slots: Power, Propulsion, Utility, Weapon 3962 | -10/Subcaves | Build established: Scavenger-Mutant 4172 | -10/Subcaves | Disturbed a concealed Subdweller 4179 | -10/Subcaves | Destroyed by BZ-GVE(R) with Subdweller Laser Last Messages --------------- Acquired 5 matter. Acquired 1 matter. LA-LLG(R) destroyed. Subatomizers dissect the Sub. Laser. Acquired 47 matter. Acquired Sub. Monowheel. Subatomizers dissect the Sub. Laser. Dropped Lgt. Treads. Acquired Disposable Heat Sink. Acquired 4 matter. Acquired Sub. Optics. Subatomizers dissect the Sub. Laser. Acquired 14 matter. Sub. Monowheel shoots sparks and powers down. Dropped Broken Sub. Monowheel. Subatomizers dissect the Broken Sub. Monowheel. BZ-GVE(R) angrily emerges from the Twisted Machinery. BZ-GVE(R) knocked back. Acquired 3 matter. Map ----- +----------------------------------------------------+ | ## #####???????????????????? "#?## | | # ###?????????????????????#"## *&# # | | # ###?????????????????????# & = # | | ###?######??????????##### #! # # | | ###############?####### ### ##### ## | | ###### ########## ###?####????# #? | | ##### ### #???????????? # | | ######## ## #### #????????????? ## | | ########## ## ## #######????????????? #? | | ########## ### &### ####?????????????????#? | | ### ### ##### ### ##??????????????????? | | ###### ###??????????????????? | | ###### #####?????????????????? | | ####### # ###????????????????? | | ###### ### ###???????????????? | | ###### ### ##???????????????? | | ###### ## #### ## ###???????????????? | | ## #### ### ### ## ##???????????????? | | # #### #### #### ## ###???????????????? | | # ###### ### ### ###?#?????????????????? | | ########### ### ##### ###???????????????????? | | ########?## ## # #????????????????????? | | ### ##?### ## #### ##????????????????????? | | ## ##?#### ## ##<<## ##????????????????????? | | # ##??######## #<&$<# ##????????????????????? | | = ##???######## #